{"text_format":"1","workbook":"xlsx","n_sheets":12,"sheets":["Opłata pobyt","Żywienie","Żywienie (2)","Żywienie (3)","Żywienie (4)","Żywienie (5)","Żywienie razem","Personel","Wpłaty żywienie personel","Detaliczna","Arkusz2 (2)","LIsty"],"not_rendered":{"charts":0,"images":1,"macros":1,"external_links":1,"defined_names":24,"comments":0,"pivot_tables":0},"unopened":[],"bounds":{"document_bytes":16777216,"sheet_cells":100000,"rows_first":2000,"rows_last":500,"rows_between":2000,"halvings":0,"cell_chars":16384,"cell_head_chars":4096},"cells_cut":0,"cells_raw":0,"read":"whole","date_system":"1900"}

{"sheet":"Opłata pobyt","index":0,"n_rows":29,"n_cols":12,"rows_kept":29,"cut":false,"hidden":false,"merged":[[17,7,17,8],[18,2,18,3],[18,4,18,7],[18,9,18,10],[14,2,14,3],[14,9,14,10],[8,10,10,10],[8,8,9,8],[10,7,10,8],[8,2,10,2],[14,4,14,7],[8,3,10,3],[8,4,9,4],[8,5,9,5],[8,6,9,6],[8,7,9,7],[10,4,10,6],[13,7,13,8],[0,0,0,1],[1,0,1,1],[2,0,2,1],[8,0,10,0],[8,9,10,9],[8,1,10,1]]}
[]
[{"$f":"IF(OR($A$1=\"\",$A$1=\"Wybierz placówkę\"),\"\",VLOOKUP($A$1,adresowe,2,FALSE))","v":""}]
[{"$f":"IF(OR($A$1=\"\",$A$1=\"Wybierz placówkę\"),\"\",VLOOKUP($A$1,adresowe,4,FALSE))","v":""}]
["Pieczęć Placówki"]
[]
[]
[null,null,"ZESTAWIENIE ODPŁATNOŚCI ZA POBYT"]
[]
["A","B","C","D","E","F","G","H","I","J","K"]
[]
[null,null,null,null,"Wpływy do banku w danym miesiącu ",null,null,"Nadpłaty ogółem"]
["Nadpłata z poprzedniego miesiąca","Zaległości z poprzedniego miesiąca (wymagalne oraz niewymagalne)","Przypis za miesiąc bieżący","Odpis (korekty przypisu za poprz.m-c)","Zwroty","Za bieżący miesiąc ","Za miesiące poprzednie","Nadpłaty na poczet następnych miesięcy powstałe                         w bm","Nadpłaty na poczet następnych miesięcy powstałe                                      w ub.mcach","Zaległości wymagalne na koniec bieżącego miesiąca","Zaległości niewymagalne"]
[null,null,null,null,null,null,null,null,null,{"$f":"B13+C13-A13-D13-G13-H13-I13+E13","v":0},{"$f":"C13-F13+I13-A13+E13","v":0}]
[null,null,null,null,null,null,null,{"$f":"H13+I13","v":0}]
[{"$f":"A13","v":0},{"$f":"B13","v":0},{"$f":"C13-D13","v":0},null,{"$f":"F13+G13+H13-E13","v":0},null,null,null,null,{"$f":"J13+K13","v":0}]
[]
[null,null,null,null,null,null,null,null,null,{"$f":"B17+C17-A17-D17-G17-H17-I17+E17","v":0},null,"Odsetki"]
[null,null,null,null,null,null,null,{"$f":"H17+I17","v":0}]
[{"$f":"A17","v":0},{"$f":"B17","v":0},{"$f":"C17-D17","v":0},null,{"$f":"F17+G17+H17-E17","v":0},null,null,null,null,{"$f":"J17+K17","v":0}]
[]
[]
[]
[]
[null,"………………………………………………………….",null,null,null,null,"…………………………………………………"]
[null,"Pieczęć i podpis kierownika administr.",null,null,null,null,"Pieczęć i podpis kierownika jednostki"]
[]
[]
[null,{"$f":"TODAY()","v":"2021-03-08"}]
[null,"Data"]

{"sheet":"Żywienie","index":1,"n_rows":30,"n_cols":11,"rows_kept":30,"cut":false,"hidden":false,"merged":[[18,5,18,8],[0,0,0,1],[1,0,1,1],[2,0,2,1],[14,5,14,8],[9,0,10,0],[9,1,10,1],[9,2,10,2],[9,4,10,4],[10,5,10,8],[9,3,10,3],[6,1,6,5]]}
["Wybierz placówkę"]
[{"$f":"IF(OR($A$1=\"\",$A$1=\"Wybierz placówkę\",VLOOKUP($A$1,adresowe,2,FALSE)=0),\"\",VLOOKUP($A$1,adresowe,2,FALSE))","v":""}]
[{"$f":"IF(OR($A$1=\"\",$A$1=\"Wybierz placówkę\"),\"\",VLOOKUP($A$1,adresowe,4,FALSE))","v":""}]
["Pieczęć Placówki"]
[]
[]
[null,"ZESTAWIENIE ODPŁATNOŚCI ZA ŻYWIENIE MIESIĄC"]
[]
[]
["A","B","C","D","E","F","G","H","I","J"]
[null,null,null,null,null,"WPŁATY DO BANKU"]
["Nadpłata z poprzedniego miesiąca","Zaległości z poprzedniego miesiąca (w tym dochodzone na drodze sądowej)","Przypis za miesiąc bieżący","Odsetki ustawowe z tyt. nieterminowych płatności","Odpis ","Zwroty","Wpłaty OPS","Wpłaty za bieżący miesiąc","Nadpłata na poczet następnych miesięcy ","Zaległości na koniec bieżącego miesiąca (w tym dochodzone na drodze sądowej)"]
[null,null,null,null,null,null,null,null,null,{"$f":"(B13+C13+D13-E13)-(A13+G13+H13-F13)","v":0}]
[{"$f":"SUM(A13:A13)","v":0},0,{"$f":"C13","v":0},null,{"$f":"E13","v":0},0,0,0,0]
[{"$f":"A14","v":0},{"$f":"B14","v":0},{"$f":"C14-E14","v":0},null,null,{"$f":"H14+I14-F14+G14","v":0},null,null,null,{"$f":"SUM(J13:J13)","v":0}]
[]
[null,null,null,null,null,null,null,null,null,{"$f":"(B17+C17+D17-E17)-(A17+G17+H17-F17)","v":0},"Odsetki"]
[]
[{"$f":"A17","v":0},{"$f":"B17","v":0},{"$f":"C17-E17","v":0},{"$f":"D17","v":0},{"$f":"E17","v":0},{"$f":"H17+I17-F17+G17","v":0},null,null,null,{"$f":"J17","v":0}]
[]
[]
[]
[]
[null,"………………………………………………………….",null,null,null,null,null,"…………………………………………………"]
[null,"Pieczęć i podpis kierownika administr.",null,null,null,null,null,"Pieczęć i podpis kierownika jednostki"]
[null,null,null,null,"w tym:"]
[]
[null,{"$f":"'Opłata pobyt'!B28","v":"2021-03-08"},null,null,"f-ry dla rodziców"]
[null,"Data",null,null,"dożywianie"]
[null,null,null,null,"noty OPS, itp.."]

{"sheet":"Żywienie (2)","index":2,"n_rows":30,"n_cols":11,"rows_kept":30,"cut":false,"hidden":true,"merged":[[14,5,14,8],[18,5,18,8],[6,1,6,5],[0,0,0,1],[1,0,1,1],[2,0,2,1],[9,0,10,0],[9,1,10,1],[9,2,10,2],[9,3,10,3],[9,4,10,4],[10,5,10,8]]}
[{"$f":"Żywienie!A1","v":"Wybierz placówkę"}]
[{"$f":"IF(OR($A$1=\"\",$A$1=\"Wybierz placówkę\",VLOOKUP($A$1,adresowe,2,FALSE)=0),\"\",VLOOKUP($A$1,adresowe,2,FALSE))","v":""}]
[{"$f":"IF(OR($A$1=\"\",$A$1=\"Wybierz placówkę\"),\"\",VLOOKUP($A$1,adresowe,4,FALSE))","v":""}]
["Pieczęć Placówki"]
[]
[]
[null,"ZESTAWIENIE ODPŁATNOŚCI ZA ŻYWIENIE MIESIĄC"]
[]
[]
["A","B","C","D","E","F","G","H","I","J"]
[null,null,null,null,null,"WPŁATY DO BANKU"]
["Nadpłata z poprzedniego miesiąca","Zaległości z poprzedniego miesiąca (w tym dochodzone na drodze sądowej)","Przypis za miesiąc bieżący","Odsetki ustawowe z tyt. nieterminowych płatności","Odpis ","Zwroty","Wpłaty OPS","Wpłaty za bieżący miesiąc","Nadpłata na poczet następnych miesięcy ","Zaległości na koniec bieżącego miesiąca (w tym dochodzone na drodze sądowej)"]
[null,null,null,null,null,null,null,null,null,{"$f":"(B13+C13+D13-E13)-(A13+G13+H13-F13)","v":0}]
[{"$f":"SUM(A13:A13)","v":0},0,0,0,0,0,0,0,0]
[{"$f":"A14","v":0},{"$f":"B14","v":0},{"$f":"C14-E14","v":0},null,null,{"$f":"H14+I14-F14+G14","v":0},null,null,null,{"$f":"SUM(J13:J13)","v":0}]
[]
[null,null,null,null,null,null,null,null,null,{"$f":"(B17+C17+D17-E17)-(A17+G17+H17-F17)","v":0},"Odsetki"]
[]
[{"$f":"A17","v":0},{"$f":"B17","v":0},{"$f":"C17-E17","v":0},{"$f":"D17","v":0},{"$f":"E17","v":0},{"$f":"H17+I17-F17+G17","v":0},null,null,null,{"$f":"J17","v":0}]
[]
[]
[]
[]
[null,"………………………………………………………….",null,null,null,null,null,"…………………………………………………"]
[null,"Pieczęć i podpis kierownika administr.",null,null,null,null,null,"Pieczęć i podpis kierownika jednostki"]
[null,null,null,null,"w tym:"]
[]
[null,{"$f":"TODAY()","v":"2021-03-08"},null,null,"f-ry dla rodziców"]
[null,"Data",null,null,"dożywianie"]
[null,null,null,null,"noty OPS, itp.."]

{"sheet":"Żywienie (3)","index":3,"n_rows":30,"n_cols":11,"rows_kept":30,"cut":false,"hidden":true,"merged":[[14,5,14,8],[18,5,18,8],[6,1,6,5],[0,0,0,1],[1,0,1,1],[2,0,2,1],[9,0,10,0],[9,1,10,1],[9,2,10,2],[9,3,10,3],[9,4,10,4],[10,5,10,8]]}
[{"$f":"Żywienie!A1","v":"Wybierz placówkę"}]
[{"$f":"IF(OR($A$1=\"\",$A$1=\"Wybierz placówkę\",VLOOKUP($A$1,adresowe,2,FALSE)=0),\"\",VLOOKUP($A$1,adresowe,2,FALSE))","v":""}]
[{"$f":"IF(OR($A$1=\"\",$A$1=\"Wybierz placówkę\"),\"\",VLOOKUP($A$1,adresowe,4,FALSE))","v":""}]
["Pieczęć Placówki"]
[]
[]
[null,"ZESTAWIENIE ODPŁATNOŚCI ZA ŻYWIENIE MIESIĄC"]
[]
[]
["A","B","C","D","E","F","G","H","I","J"]
[null,null,null,null,null,"WPŁATY DO BANKU"]
["Nadpłata z poprzedniego miesiąca","Zaległości z poprzedniego miesiąca (w tym dochodzone na drodze sądowej)","Przypis za miesiąc bieżący","Odsetki ustawowe z tyt. nieterminowych płatności","Odpis ","Zwroty","Wpłaty OPS","Wpłaty za bieżący miesiąc","Nadpłata na poczet następnych miesięcy ","Zaległości na koniec bieżącego miesiąca (w tym dochodzone na drodze sądowej)"]
[null,null,null,null,null,null,null,null,null,{"$f":"(B13+C13+D13-E13)-(A13+G13+H13-F13)","v":0}]
[{"$f":"SUM(A13:A13)","v":0},0,0,0,0,0,0,0,0]
[{"$f":"A14","v":0},{"$f":"B14","v":0},{"$f":"C14-E14","v":0},null,null,{"$f":"H14+I14-F14+G14","v":0},null,null,null,{"$f":"SUM(J13:J13)","v":0}]
[]
[null,null,null,null,null,null,null,null,null,{"$f":"(B17+C17+D17-E17)-(A17+G17+H17-F17)","v":0},"Odsetki"]
[]
[{"$f":"A17","v":0},{"$f":"B17","v":0},{"$f":"C17-E17","v":0},{"$f":"D17","v":0},{"$f":"E17","v":0},{"$f":"H17+I17-F17+G17","v":0},null,null,null,{"$f":"J17","v":0}]
[]
[]
[]
[]
[null,"………………………………………………………….",null,null,null,null,null,"…………………………………………………"]
[null,"Pieczęć i podpis kierownika administr.",null,null,null,null,null,"Pieczęć i podpis kierownika jednostki"]
[null,null,null,null,"w tym:"]
[]
[null,{"$f":"TODAY()","v":"2021-03-08"},null,null,"f-ry dla rodziców"]
[null,"Data",null,null,"dożywianie"]
[null,null,null,null,"noty OPS, itp.."]

{"sheet":"Żywienie (4)","index":4,"n_rows":30,"n_cols":11,"rows_kept":30,"cut":false,"hidden":true,"merged":[[14,5,14,8],[18,5,18,8],[0,0,0,1],[1,0,1,1],[2,0,2,1],[6,1,6,5],[9,0,10,0],[9,1,10,1],[9,2,10,2],[9,3,10,3],[9,4,10,4],[10,5,10,8]]}
[{"$f":"Żywienie!A1","v":"Wybierz placówkę"}]
[{"$f":"IF(OR($A$1=\"\",$A$1=\"Wybierz placówkę\",VLOOKUP($A$1,adresowe,2,FALSE)=0),\"\",VLOOKUP($A$1,adresowe,2,FALSE))","v":""}]
[{"$f":"IF(OR($A$1=\"\",$A$1=\"Wybierz placówkę\"),\"\",VLOOKUP($A$1,adresowe,4,FALSE))","v":""}]
["Pieczęć Placówki"]
[]
[]
[null,"ZESTAWIENIE ODPŁATNOŚCI ZA ŻYWIENIE MIESIĄC"]
[]
[]
["A","B","C","D","E","F","G","H","I","J"]
[null,null,null,null,null,"WPŁATY DO BANKU"]
["Nadpłata z poprzedniego miesiąca","Zaległości z poprzedniego miesiąca (w tym dochodzone na drodze sądowej)","Przypis za miesiąc bieżący","Odsetki ustawowe z tyt. nieterminowych płatności","Odpis ","Zwroty","Wpłaty OPS","Wpłaty za bieżący miesiąc","Nadpłata na poczet następnych miesięcy ","Zaległości na koniec bieżącego miesiąca (w tym dochodzone na drodze sądowej)"]
[null,null,null,null,null,null,null,null,null,{"$f":"(B13+C13+D13-E13)-(A13+G13+H13-F13)","v":0}]
[{"$f":"SUM(A13:A13)","v":0},0,0,0,0,0,0,0,0]
[{"$f":"A14","v":0},{"$f":"B14","v":0},{"$f":"C14-E14","v":0},null,null,{"$f":"H14+I14-F14+G14","v":0},null,null,null,{"$f":"SUM(J13:J13)","v":0}]
[]
[null,null,null,null,null,null,null,null,null,{"$f":"(B17+C17+D17-E17)-(A17+G17+H17-F17)","v":0},"Odsetki"]
[]
[{"$f":"A17","v":0},{"$f":"B17","v":0},{"$f":"C17-E17","v":0},{"$f":"D17","v":0},{"$f":"E17","v":0},{"$f":"H17+I17-F17+G17","v":0},null,null,null,{"$f":"J17","v":0}]
[]
[]
[]
[]
[null,"………………………………………………………….",null,null,null,null,null,"…………………………………………………"]
[null,"Pieczęć i podpis kierownika administr.",null,null,null,null,null,"Pieczęć i podpis kierownika jednostki"]
[null,null,null,null,"w tym:"]
[]
[null,{"$f":"TODAY()","v":"2021-03-08"},null,null,"f-ry dla rodziców"]
[null,"Data",null,null,"dożywianie"]
[null,null,null,null,"noty OPS, itp.."]

{"sheet":"Żywienie (5)","index":5,"n_rows":29,"n_cols":11,"rows_kept":29,"cut":false,"hidden":true,"merged":[[14,5,14,8],[18,5,18,8],[0,0,0,1],[1,0,1,1],[2,0,2,1],[6,1,6,5],[9,0,10,0],[9,1,10,1],[9,2,10,2],[9,3,10,3],[9,4,10,4],[10,5,10,8]]}
[{"$f":"Żywienie!A1","v":"Wybierz placówkę"}]
[{"$f":"IF(OR($A$1=\"\",$A$1=\"Wybierz placówkę\",VLOOKUP($A$1,adresowe,2,FALSE)=0),\"\",VLOOKUP($A$1,adresowe,2,FALSE))","v":""}]
[{"$f":"IF(OR($A$1=\"\",$A$1=\"Wybierz placówkę\"),\"\",VLOOKUP($A$1,adresowe,4,FALSE))","v":""}]
["Pieczęć Placówki"]
[]
[]
[null,"ZESTAWIENIE ODPŁATNOŚCI ZA ŻYWIENIE MIESIĄC"]
[]
[]
["A","B","C","D","E","F","G","H","I","J"]
[null,null,null,null,null,"WPŁATY DO BANKU"]
["Nadpłata z poprzedniego miesiąca","Zaległości z poprzedniego miesiąca (w tym dochodzone na drodze sądowej)","Przypis za miesiąc bieżący","Odsetki ustawowe z tyt. nieterminowych płatności","Odpis ","Zwroty","Wpłaty OPS","Wpłaty za bieżący miesiąc","Nadpłata na poczet następnych miesięcy ","Zaległości na koniec bieżącego miesiąca (w tym dochodzone na drodze sądowej)"]
[null,null,null,null,null,null,null,null,null,{"$f":"(B13+C13+D13-E13)-(A13+G13+H13-F13)","v":0}]
[{"$f":"SUM(A13:A13)","v":0},0,0,0,0,0,0,0,0]
[{"$f":"A14","v":0},{"$f":"B14","v":0},{"$f":"C14-E14","v":0},null,null,{"$f":"H14+I14-F14+G14","v":0},null,null,null,{"$f":"SUM(J13:J13)","v":0}]
[]
[null,null,null,null,null,null,null,null,null,{"$f":"(B17+C17+D17-E17)-(A17+G17+H17-F17)","v":0},"Odsetki"]
[]
[{"$f":"A17","v":0},{"$f":"B17","v":0},{"$f":"C17-E17","v":0},{"$f":"D17","v":0},{"$f":"E17","v":0},{"$f":"H17+I17-F17+G17","v":0},null,null,null,{"$f":"J17","v":0}]
[]
[]
[]
[]
[null,"………………………………………………………….",null,null,null,null,null,"…………………………………………………"]
[null,"Pieczęć i podpis kierownika administr.",null,null,"w tym:",null,null,"Pieczęć i podpis kierownika jednostki"]
[]
[null,null,null,null,"f-ry dla rodziców"]
[null,{"$f":"TODAY()","v":"2021-03-08"},null,null,"dożywianie"]
[null,"Data",null,null,"noty OPS, itp.."]

{"sheet":"Żywienie razem","index":6,"n_rows":30,"n_cols":11,"rows_kept":30,"cut":false,"hidden":true,"merged":[[14,5,14,8],[18,5,18,8],[0,0,0,1],[1,0,1,1],[2,0,2,1],[6,1,6,5],[9,0,10,0],[9,1,10,1],[9,2,10,2],[9,3,10,3],[9,4,10,4],[10,5,10,8]]}
[{"$f":"Żywienie!A1","v":"Wybierz placówkę"}]
[{"$f":"IF(OR($A$1=\"\",$A$1=\"Wybierz placówkę\",VLOOKUP($A$1,adresowe,2,FALSE)=0),\"\",VLOOKUP($A$1,adresowe,2,FALSE))","v":""}]
[{"$f":"IF(OR($A$1=\"\",$A$1=\"Wybierz placówkę\"),\"\",VLOOKUP($A$1,adresowe,4,FALSE))","v":""}]
["Pieczęć Placówki"]
[]
[]
[null,"ZESTAWIENIE ODPŁATNOŚCI ZA ŻYWIENIE MIESIĄC",null,null,null,null,"CZERWIEC",null,"Razem"]
[]
[]
["A","B","C","D","E","F","G","H","I","J"]
[null,null,null,null,null,"WPŁATY DO BANKU"]
["Nadpłata z poprzedniego miesiąca","Zaległości z poprzedniego miesiąca (w tym dochodzone na drodze sądowej)","Przypis za miesiąc bieżący","Odsetki ustawowe z tyt. nieterminowych płatności","Odpis ","Zwroty","Wpłaty OPS","Wpłaty za bieżący miesiąc","Nadpłata na poczet następnych miesięcy ","Zaległości na koniec bieżącego miesiąca (w tym dochodzone na drodze sądowej)"]
[{"$f":"Żywienie!A13+'Żywienie (2)'!A13+'Żywienie (3)'!A13+'Żywienie (4)'!A13+'Żywienie (5)'!A13","v":0},{"$f":"Żywienie!B13+'Żywienie (2)'!B13+'Żywienie (3)'!B13+'Żywienie (4)'!B13+'Żywienie (5)'!B13","v":0},{"$f":"Żywienie!C13+'Żywienie (2)'!C13+'Żywienie (3)'!C13+'Żywienie (4)'!C13+'Żywienie (5)'!C13","v":0},{"$f":"Żywienie!D13+'Żywienie (2)'!D13+'Żywienie (3)'!D13+'Żywienie (4)'!D13+'Żywienie (5)'!D13","v":0},{"$f":"Żywienie!E13+'Żywienie (2)'!E13+'Żywienie (3)'!E13+'Żywienie (4)'!E13+'Żywienie (5)'!E13","v":0},{"$f":"Żywienie!F13+'Żywienie (2)'!F13+'Żywienie (3)'!F13+'Żywienie (4)'!F13+'Żywienie (5)'!F13","v":0},{"$f":"Żywienie!G13+'Żywienie (2)'!G13+'Żywienie (3)'!G13+'Żywienie (4)'!G13+'Żywienie (5)'!G13","v":0},{"$f":"Żywienie!H13+'Żywienie (2)'!H13+'Żywienie (3)'!H13+'Żywienie (4)'!H13+'Żywienie (5)'!H13","v":0},{"$f":"Żywienie!I13+'Żywienie (2)'!I13+'Żywienie (3)'!I13+'Żywienie (4)'!I13+'Żywienie (5)'!I13","v":0},{"$f":"(B13+C13+D13-E13)-(A13+G13+H13-F13)","v":0}]
[{"$f":"SUM(A13:A13)","v":0},0,0,0,0,0,0,0,0]
[{"$f":"A14","v":0},{"$f":"B14","v":0},{"$f":"C14-E14","v":0},null,null,{"$f":"H14+I14-F14+G14","v":0},null,null,null,{"$f":"SUM(J13:J13)","v":0}]
[]
[{"$f":"Żywienie!A17+'Żywienie (2)'!A17+'Żywienie (3)'!A17+'Żywienie (4)'!A17+'Żywienie (5)'!A17","v":0},{"$f":"Żywienie!B17+'Żywienie (2)'!B17+'Żywienie (3)'!B17+'Żywienie (4)'!B17+'Żywienie (5)'!B17","v":0},{"$f":"Żywienie!C17+'Żywienie (2)'!C17+'Żywienie (3)'!C17+'Żywienie (4)'!C17+'Żywienie (5)'!C17","v":0},{"$f":"Żywienie!D17+'Żywienie (2)'!D17+'Żywienie (3)'!D17+'Żywienie (4)'!D17+'Żywienie (5)'!D17","v":0},{"$f":"Żywienie!E17+'Żywienie (2)'!E17+'Żywienie (3)'!E17+'Żywienie (4)'!E17+'Żywienie (5)'!E17","v":0},{"$f":"Żywienie!F17+'Żywienie (2)'!F17+'Żywienie (3)'!F17+'Żywienie (4)'!F17+'Żywienie (5)'!F17","v":0},{"$f":"Żywienie!G17+'Żywienie (2)'!G17+'Żywienie (3)'!G17+'Żywienie (4)'!G17+'Żywienie (5)'!G17","v":0},{"$f":"Żywienie!H17+'Żywienie (2)'!H17+'Żywienie (3)'!H17+'Żywienie (4)'!H17+'Żywienie (5)'!H17","v":0},{"$f":"Żywienie!I17+'Żywienie (2)'!I17+'Żywienie (3)'!I17+'Żywienie (4)'!I17+'Żywienie (5)'!I17","v":0},{"$f":"(B17+C17+D17-E17)-(A17+G17+H17-F17)","v":0},"Odsetki"]
[]
[{"$f":"A17","v":0},{"$f":"B17","v":0},{"$f":"C17-E17","v":0},{"$f":"D17","v":0},{"$f":"E17","v":0},{"$f":"H17+I17-F17+G17","v":0},null,null,null,{"$f":"J17","v":0}]
[]
[]
[]
[]
[null,"………………………………………………………….",null,null,null,null,null,"…………………………………………………"]
[null,"Pieczęć i podpis kierownika administr.",null,null,null,null,null,"Pieczęć i podpis kierownika jednostki"]
[null,null,null,null,"w tym:"]
[]
[null,null,null,null,"f-ry dla rodziców",{"$f":"SUM(Żywienie!F28+'Żywienie (2)'!F28+'Żywienie (3)'!F28+'Żywienie (4)'!F28+'Żywienie (5)'!F27)","v":0}]
[null,"Data",null,null,"dożywianie",{"$f":"SUM(Żywienie!F29+'Żywienie (2)'!F29+'Żywienie (3)'!F29+'Żywienie (4)'!F29+'Żywienie (5)'!F28)","v":0}]
[null,null,null,null,"noty OPS, itp..",{"$f":"SUM(Żywienie!F30+'Żywienie (2)'!F30+'Żywienie (3)'!F30+'Żywienie (4)'!F30+'Żywienie (5)'!F29)","v":0}]

{"sheet":"Personel","index":7,"n_rows":28,"n_cols":7,"rows_kept":28,"cut":false,"hidden":false,"merged":[[0,0,0,1],[1,0,1,1],[2,0,2,1],[6,0,6,4],[14,3,14,4],[32,1,32,11],[9,0,10,0],[9,1,10,1],[9,2,10,2],[9,5,10,5],[9,6,10,6],[10,3,10,4]]}
[{"$f":"IF(Żywienie!A1=\"\",\"\",Żywienie!A1)","v":"Wybierz placówkę"}]
[{"$f":"Żywienie!A2","v":""}]
[{"$f":"Żywienie!A3","v":""}]
["Pieczęć Placówki"]
[]
[]
["ZESTAWIENIE ODPŁATNOŚCI ZA ŻYWIENIE PERSONELU ZA MIESIĄC  "]
[]
[]
["A","B","C","D","E","F","G"]
[null,null,null,"WPŁATY DO BANKU"]
["Nadpłata z poprzedniego miesiąca","Zaległości z poprzedniego miesiąca (w tym dochodzone na drodze sądowej)","Przypis za miesiąc bieżący (w tym VAT)","Zwroty","Wpłaty za bieżący miesiąc","Nadpłata na poczet następnych miesięcy ","Zaległości na koniec bieżącego miesiąca (w tym dochodzone na drodze sądowej)"]
[{"$f":"'Wpłaty żywienie personel'!C66","v":0},{"$f":"'Wpłaty żywienie personel'!D66","v":0},{"$f":"'Wpłaty żywienie personel'!E66+'Wpłaty żywienie personel'!F66+'Wpłaty żywienie personel'!G66+'Wpłaty żywienie personel'!H66","v":0},{"$f":"'Wpłaty żywienie personel'!J66","v":0},{"$f":"'Wpłaty żywienie personel'!I66","v":0},{"$f":"'Wpłaty żywienie personel'!K66","v":0},{"$f":"'Wpłaty żywienie personel'!L66","v":0}]
[]
[{"$f":"A13","v":0},{"$f":"B13","v":0},{"$f":"C13-D13","v":0},{"$f":"E13-D13","v":0},null,{"$f":"F13","v":0},{"$f":"G13","v":0}]
[]
[]
[]
[]
[]
[]
[]
["…………………………………………………………."]
["Pieczęć i podpis kierownika administr.",null,null,null,null,"…………………………………………………"]
[null,null,null,null,null,"Pieczęć i podpis kierownika jednostki"]
[]
[{"$f":"Żywienie!B28","v":"2021-03-08"}]
["Data"]

{"sheet":"Wpłaty żywienie personel","index":8,"n_rows":78,"n_cols":12,"rows_kept":78,"cut":false,"hidden":false,"merged":[[11,11,12,11],[6,0,6,4],[11,0,12,0],[11,2,12,2],[11,8,12,8],[11,9,12,9],[11,10,12,10],[11,1,12,1],[11,3,12,3]]}
[{"$f":"IF(Żywienie!A1=\"\",\"\",Żywienie!A1)","v":"Wybierz placówkę"}]
[{"$f":"Żywienie!A2","v":""}]
[{"$f":"Żywienie!A3","v":""}]
["Pieczęć Placówki"]
["Pieczęć Placówki"]
[]
["ZESTAWIENIE WPŁAT ZA ŻYWIENIE PERSONELU ZA MIESIĄC  "]
[]
[]
[]
[]
["Imię i nazwisko","stanowisko","Nadpłata z poprzedniego miesiąca","Zaległość z poprzedniego miesiąca","Przypis za bieżący miesiąc",null,null,null,"Wpłata","Zwrot","Nadpłata na koniec miesiąca","Zaległość na koniec miesiąca"]
[null,null,null,null,"Żywienie","Podatek VAT 8%","Koszt p.posiłku","Podatek VAT 8%"]
[null,null,null,null,null,{"$f":"ROUND(IF(B14=\"Nauczyciel\",0,E14*8%),2)","v":0},null,{"$f":"ROUND(IF(B14=\"Nauczyciel\",0,G14*8%),2)","v":0},null,null,{"$f":"IF(C14-D14-E14-F14-G14-H14+I14+J14>0,C14-D14-E14-F14-G14-H14+I14+J14,0)","v":0},{"$f":"IF(C14-D14-E14-F14-G14-H14+I14+J14<0,C14-D14-E14-F14-G14-H14+I14+J14,0)","v":0}]
[null,null,null,null,null,{"$f":"ROUND(IF(B15=\"Nauczyciel\",0,E15*8%),2)","v":0},null,{"$f":"ROUND(IF(B15=\"Nauczyciel\",0,G15*8%),2)","v":0},null,null,0,0]
[null,null,null,null,null,0,null,0,null,null,0,0]
[null,null,null,null,null,0,null,{"$f":"ROUND(IF(B17=\"Nauczyciel\",0,G17*8%),2)","v":0},null,null,0,0]
[null,null,null,null,null,0,null,0,null,null,0,0]
[null,null,null,null,null,0,null,0,null,null,0,0]
[null,null,null,null,null,0,null,0,null,null,0,0]
[null,null,null,null,null,0,null,0,null,null,0,0]
[null,null,null,null,null,0,null,0,null,null,{"$f":"IF(C22-D22-E22-F22-G22-H22+I22+J22>0,C22-D22-E22-F22-G22-H22+I22+J22,0)","v":0},{"$f":"IF(C22-D22-E22-F22-G22-H22+I22+J22<0,C22-D22-E22-F22-G22-H22+I22+J22,0)","v":0}]
[null,null,null,null,null,0,null,0,null,null,0,0]
[null,null,null,null,null,0,null,0,null,null,0,0]
[null,null,null,null,null,0,null,0,null,null,0,0]
[null,null,null,null,null,0,null,0,null,null,0,0]
[null,null,null,null,null,0,null,0,null,null,0,0]
[null,null,null,null,null,0,null,0,null,null,0,0]
[null,null,null,null,null,0,null,0,null,null,0,0]
[null,null,null,null,null,0,null,0,null,null,0,0]
[null,null,null,null,null,0,null,0,null,null,0,0]
[null,null,null,null,null,0,null,0,null,null,{"$f":"IF(C32-D32-E32-F32-G32-H32+I32+J32>0,C32-D32-E32-F32-G32-H32+I32+J32,0)","v":0},{"$f":"IF(C32-D32-E32-F32-G32-H32+I32+J32<0,C32-D32-E32-F32-G32-H32+I32+J32,0)","v":0}]
[null,null,null,null,null,0,null,0,null,null,0,0]
[null,null,null,null,null,0,null,0,null,null,0,0]
[null,null,null,null,null,0,null,0,null,null,0,0]
[null,null,null,null,null,0,null,0,null,null,0,0]
[null,null,null,null,null,0,null,0,null,null,0,0]
[null,null,null,null,null,0,null,0,null,null,0,0]
[null,null,null,null,null,0,null,0,null,null,0,0]
[null,null,null,null,null,0,null,0,null,null,0,0]
[null,null,null,null,null,0,null,0,null,null,0,0]
[null,null,null,null,null,0,null,0,null,null,0,0]
[null,null,null,null,null,0,null,0,null,null,0,0]
[null,null,null,null,null,0,null,0,null,null,0,0]
[null,null,null,null,null,0,null,0,null,null,0,0]
[null,null,null,null,null,0,null,0,null,null,0,0]
[null,null,null,null,null,0,null,0,null,null,0,0]
[null,null,null,null,null,0,null,0,null,null,0,0]
[null,null,null,null,null,0,null,0,null,null,0,0]
[null,null,null,null,null,0,null,0,null,null,0,0]
[null,null,null,null,null,0,null,0,null,null,0,0]
[null,null,null,null,null,0,null,0,null,null,0,0]
[null,null,null,null,null,0,null,0,null,null,0,0]
[null,null,null,null,null,0,null,0,null,null,0,0]
[null,null,null,null,null,0,null,0,null,null,0,0]
[null,null,null,null,null,0,null,0,null,null,0,0]
[null,null,null,null,null,0,null,0,null,null,0,0]
[null,null,null,null,null,0,null,0,null,null,0,0]
[null,null,null,null,null,0,null,0,null,null,0,0]
[null,null,null,null,null,0,null,0,null,null,{"$f":"IF(C60-D60-E60-F60-G60-H60+I60+J60>0,C60-D60-E60-F60-G60-H60+I60+J60,0)","v":0},{"$f":"IF(C60-D60-E60-F60-G60-H60+I60+J60<0,C60-D60-E60-F60-G60-H60+I60+J60,0)","v":0}]
[null,null,null,null,null,0,null,0,null,null,0,0]
[null,null,null,null,null,0,null,0,null,null,0,0]
[null,null,null,null,null,0,null,0,null,null,0,0]
[null,null,null,null,null,0,null,0,null,null,0,0]
[null,null,null,null,null,0,null,0,null,null,0,0]
["Ogółem",null,{"$f":"SUM(C14:C65)","v":0},0,0,0,0,0,0,0,0,0]
[null,"Nauczyciel",{"$f":"SUMIF($B$14:$B$65,$B67,C$14:C$65)","v":0},{"$f":"SUMIF($B$14:$B$65,$B67,D$14:D$65)","v":0},0,0,0,0,0,0,0,0]
[null,"Adm. i Obsł.",{"$f":"SUMIF($B$14:$B$65,$B68,C$14:C$65)","v":0},0,0,0,0,0,0,0,0,0]
[]
[]
[]
[]
[]
[null,"Pieczęć i podpis kierownika administr.",null,null,null,null,null,null,"Pieczęć i podpis kierownika jednostki"]
[]
[]
[null,{"$f":"(Żywienie!B28)-1","v":"2021-03-07"}]
[null,"Data"]

{"sheet":"Detaliczna","index":9,"n_rows":11,"n_cols":9,"rows_kept":11,"cut":false,"hidden":false,"merged":[[9,0,10,0],[4,3,10,3],[1,8,2,8],[1,0,2,0],[5,0,6,0],[1,4,2,4],[1,5,2,5],[1,6,2,6],[1,7,2,7]]}
[{"$f":"CONCATENATE(Żywienie!A1,CHAR(10),Żywienie!G7,\" \",Żywienie!H7)","v":"Wybierz placówkę\n "},"I METODA","II METODA",null,"PRZYCHODY ","FAKTURA DETALICZNA ","RÓŻNICE NADPŁAT 221","RÓŻNICE NADPŁAT 201","RÓŻNICA MIĘDZY FAKTURĄ DETALICZNĄ I PRZYCHODAMI"]
["Pobyt do faktury detalicznej","F + H + K - D - E","C - D - A + I",null,{"$f":"'Opłata pobyt'!C13-'Opłata pobyt'!D13+'Żywienie razem'!C13-'Żywienie razem'!E13+Personel!C13","v":0},{"$f":"B3+C7+C11","v":0},{"$f":"'Opłata pobyt'!H13+'Opłata pobyt'!I13-'Opłata pobyt'!A13","v":0},{"$f":"'Żywienie razem'!I13-'Żywienie razem'!A13+Personel!F13-Personel!A13","v":0},{"$f":"(F2-E2)-(G2+H2)","v":0}]
[null,{"$f":"'Opłata pobyt'!F13+'Opłata pobyt'!K13+'Opłata pobyt'!H13-'Opłata pobyt'!E13-'Opłata pobyt'!D13","v":0},{"$f":"'Opłata pobyt'!C13-'Opłata pobyt'!D13-'Opłata pobyt'!A13+'Opłata pobyt'!H13+'Opłata pobyt'!I13","v":0}]
[]
[null,null,null,null,null,"Należy odjąć przypis ujęty w notach (OPS-y, Dom Dziecka itp.)"]
["Żywienie do faktury detalicznej",null,"C - E - A + H"]
[null,null,{"$f":"('Żywienie razem'!C13-'Żywienie razem'!E13-'Żywienie razem'!A13+'Żywienie razem'!I13)","v":0},null,{"$f":"'Żywienie razem'!F28+'Żywienie razem'!F29+'Żywienie razem'!F30","v":0},{"$f":"C7-E7","v":0}]
[null,null,null,null,"w tym:"]
[null,null,null,null,"faktury dla rodziców","dożywianie","noty OPS,"]
["Żywienie personelu do faktury detalicznej",null,"C - A +F",null,{"$f":"'Żywienie razem'!F28","v":0},{"$f":"'Żywienie razem'!F29","v":0},{"$f":"'Żywienie razem'!F30","v":0}]
[null,null,{"$f":"Personel!C13-Personel!A13+Personel!F13","v":0}]

{"sheet":"Arkusz2 (2)","index":10,"n_rows":31,"n_cols":9,"rows_kept":31,"cut":false,"hidden":true,"merged":[]}
[]
[null,null,null,null,"Wybierz placówkę"]
[null,null,{"$f":"ROW()-2","v":1},"P 39","Przedszkole nr 39","\"Pod Topolami\"",{"$f":"CONCATENATE(E3,CHAR(10),F3)","v":"Przedszkole nr 39\n\"Pod Topolami\""},"01-947 Warszawa, ul. Dorycka 1","012047038"]
[null,null,2,"P 49","Przedszkole nr 49","\"Pluszowy Miś\"","Przedszkole nr 49\n\"Pluszowy Miś\"","01-848 Warszawa, ul. Skalbmierska 12","012524751"]
[null,null,3,"P 97","Przedszkole nr 97","\"Leśna Polanka\"","Przedszkole nr 97\n\"Leśna Polanka\"","01-810 Warszawa, ul. Twardowska 23","012524739"]
[null,null,4,"P 105","Przedszkole nr 105","\"Wesoła Stopiątka\"","Przedszkole nr 105\n\"Wesoła Stopiątka\"","01-864 Warszawa, ul. Kochanowskiego 10","012525390"]
[null,null,5,"P 181","Przedszkole nr 181","\"Wesołe Nutki\"","Przedszkole nr 181\n\"Wesołe Nutki\"","01-870 Warszawa, ul. Pruszyńskiego 5","012047009"]
[null,null,6,"P 182","Przedszkole nr 182","\"Tajemniczy Ogród\"","Przedszkole nr 182\n\"Tajemniczy Ogród\"","01-866 Warszawa, ul. Nałkowskiej 3","012525489"]
[null,null,7,"P 236","Przedszkole nr 236","\"Mali Odkrywcy\"","Przedszkole nr 236\n\"Mali Odkrywcy\"","01-844 Warszawa, ul. Fontany 2","012524656"]
[null,null,8,"P 240","Przedszkole nr 240","im. Polskich Olimpijczyków","Przedszkole nr 240\nim. Polskich Olimpijczyków","00-968 Warszawa, ul. Marymoncka 34","012524640"]
[null,null,9,"P 245","Przedszkole nr 245","\"Sowy Mądrej Głowy\"","Przedszkole nr 245\n\"Sowy Mądrej Głowy\"","01-870 Warszawa, ul. Pruszyńskiego 1","011099576"]
[null,null,10,"P 268","Przedszkole nr 268","\"Słoneczny Promyk\"","Przedszkole nr 268\n\"Słoneczny Promyk\"","01-962 Warszawa, ul. Przytyk 5a","012524633"]
[null,null,11,"P 271","Przedszkole nr 271","\"Wróbelka Elemelka\"","Przedszkole nr 271\n\"Wróbelka Elemelka\"","01-876 Warszawa, ul. Broniewskiego 93","012525377"]
[null,null,12,"P 272","Przedszkole nr 272","\"Misia Uszatka\"","Przedszkole nr 272\n\"Misia Uszatka\"","01-944 Warszawa, ul. Gajcego 9","012524627"]
[null,null,13,"P 287","Przedszkole nr 287","\"Piotrusia Pana\"","Przedszkole nr 287\n\"Piotrusia Pana\"","01-876 Warszawa, ul. Broniewskiego 81","012524610"]
[null,null,14,"P 301","Przedszkole nr 301","\"Zaczarowany Świat\"","Przedszkole nr 301\n\"Zaczarowany Świat\"","01-891 Warszawa, ul. Staffa 7b","012524573"]
[null,null,15,"P 306","Przedszkole nr 306","\"Mali Optymiści\"","Przedszkole nr 306\n\"Mali Optymiści\"","01-957 Warszawa, ul. Szegedyńska 13","012524580"]
[null,null,16,"P 307","Przedszkole nr 307","\"Wesołe Ekoludki\"","Przedszkole nr 307\n\"Wesołe Ekoludki\"","01-833 Warszawa, ul. Księgarzy 9","012524596"]
[null,null,17,"P 308","Przedszkole nr 308","\"Krasnala Hałabały\"","Przedszkole nr 308\n\"Krasnala Hałabały\"","01-842 Warszawa, al. Reymonta 8a","012524515"]
[null,null,18,"P 309","Przedszkole nr 309","\"Baśniowa Kraina\"","Przedszkole nr 309\n\"Baśniowa Kraina\"","01-893 Warszawa, ul. Andersena 7","012524521"]
[null,null,19,"P 318","Przedszkole nr 318","\"Zielony Zakątek\"","Przedszkole nr 318\n\"Zielony Zakątek\"","01-864 Warszawa, ul. Kochanowskiego 9a","012525354"]
[null,null,20,"P 327","Przedszkole nr 327","\"Kolorowa Kraina\"","Przedszkole nr 327\n\"Kolorowa Kraina\"","01-922 Warszawa, ul. Conrada 10a","012524538"]
[null,null,21,"P 328","Przedszkole nr 328","\"Akademia pod czereśnią\"","Przedszkole nr 328\n\"Akademia pod czereśnią\"","01-903 Warszawa, ul. Dąbrowskiej 5a","012524544"]
[null,null,22,"P 334","Przedszkole nr 334","im. Jasia i Małgosi","Przedszkole nr 334\nim. Jasia i Małgosi","01-960 Warszawa, ul. Przy Agorze 12","012047021"]
[null,null,23,"P 340","Przedszkole nr 340","\"Kasztanowego Ludka\"","Przedszkole nr 340\n\"Kasztanowego Ludka\"","01-923 Warszawa, ul. Bogusławskiego 8a","012047050"]
[null,null,24,"P 341","Przedszkole nr 341","\"Kota Filemona\"","Przedszkole nr 341\n\"Kota Filemona\"","01-915 Warszawa, ul. Wergiliusza 15","012525383"]
[null,null,25,"P 346","Przedszkole nr 346","\"Pod Kasztanem\"","Przedszkole nr 346\n\"Pod Kasztanem\"","01-684 Warszawa, ul. Klaudyny 8","012524567"]
[null,null,26,"P 364","Przedszkole nr 364","\"Pod Tęczą\"","Przedszkole nr 364\n\"Pod Tęczą\"","01-651 Warszawa, ul. Gwiaździsta 27","012527614"]
[null,null,27,"P 409","Przedszkole nr 409","\"Królestwo Maciusia I\"","Przedszkole nr 409\n\"Królestwo Maciusia I\"","01-910 Warszawa, ul. Tołstoja 2","012524490"]
[null,null,28,"P 421","Przedszkole nr 421",null,"Przedszkole nr 421\n","01-803 Warszawa, ul. Cegłowska 13a","147277897"]
[null,null,29,"P 422","Przedszkole nr 422",null,"Przedszkole nr 422\n","01-929 Warszawa, ul. Brązownicza 17","147277905"]

{"sheet":"LIsty","index":11,"n_rows":14,"n_cols":4,"rows_kept":14,"cut":false,"hidden":true,"merged":[]}
[]
[]
[null,"STYCZEŃ",null,"PROGMAN"]
[null,"LUTY",null,"DYŻUR LETNI"]
[null,"MARZEC",null,"Pozostałe"]
[null,"KWIECIEŃ",null,"Razem"]
[null,"MAJ"]
[null,"CZERWIEC"]
[null,"LIPIEC"]
[null,"SIERPIEŃ"]
[null,"WRZESIEŃ"]
[null,"PAŹDZIERNIK"]
[null,"LISTOPAD"]
[null,"GRUDZIEŃ"]